bitfinex/quotes_SOLUSD_20250803
["timestamp","ask_amount","ask_price","bid_price","bid_amount"]
[1754246250913,0.91014354,161.79,161.77,11.79416876]
[1754246251113,0.72,161.78,161.77,72.09885273]
[1754246251422,0.75385034,161.78,161.77,78.49885273]
[1754246251828,0.72,161.78,161.77,2.478545]
[1754246252036,0.75385034,161.78,161.77,43.52]
[1754246252335,0.72,161.78,161.76,78.83562376]
[1754246252507,0.72,161.77,161.76,69.52]
[1754246255005,0.72,161.75,161.71,9.31562376]
[1754246255208,0.72,161.75,161.72,43.52]
[1754246255610,0.09068228,161.74,161.72,43.52]
[1754246255934,0.72,161.73,161.72,43.52]
[1754246256398,0.81068228,161.73,161.72,43.52]
[1754246258917,0.81068228,161.73,161.7,16.78468397]
[1754246259233,0.72,161.73,161.7,43.52]
[1754246259554,0.06510791,161.72,161.7,43.52]
[1754246260143,0.72,161.71,161.7,43.52]
[1754246260512,0.72,161.73,161.7,43.52]
[1754246260711,0.06510791,161.71,161.7,43.52]
[1754246262528,0.78510791,161.71,161.7,43.52]
[1754246262736,0.78510791,161.71,161.69,60.38468397]
[1754246262928,0.72,161.7,161.69,60.38468397]
[1754246263114,0.72,161.7,161.69,66.78468397]
[1754246263313,0.79661638,161.7,161.69,66.78468397]
[1754246263622,0.79661638,161.7,161.69,50.0]
[1754246263960,0.79661638,161.7,161.69,6.46]
[1754246264324,0.72,161.7,161.69,6.46]
[1754246264633,0.79661638,161.7,161.69,0.06]
[1754246265967,0.07661638,161.7,161.69,0.06]
[1754246266119,0.67,161.72,161.69,9.37562376]
[1754246266320,9.34562376,161.73,161.69,9.37562376]
[1754246266620,0.67,161.71,161.69,9.37562376]
[1754246266820,0.10591493,161.7,161.69,0.06]
[1754246267016,0.77591493,161.7,161.69,0.06]
[1754246271068,0.10591493,161.7,161.69,9.37562376]
[1754246271358,0.10591493,161.7,161.69,0.06]
[1754246272352,0.77591493,161.7,161.69,0.06]
[1754246274559,10.09153869,161.7,161.69,0.06]
[1754246274720,9.98562376,161.7,161.69,0.06]
[1754246274921,10.04387698,161.7,161.69,0.06]
[1754246281943,0.05825322,161.7,161.69,0.06]
[1754246282178,0.05825322,161.7,161.69,9.37562376]
[1754246282382,0.67,161.72,161.69,9.37562376]
[1754246282731,0.74970099,161.71,161.69,0.06]
[1754246283176,0.07970099,161.71,161.7,26.0]
[1754246283539,0.74970099,161.71,161.7,26.0]
[1754246283989,0.67,161.71,161.7,26.0]
[1754246284443,0.74970099,161.71,161.7,26.0]
[1754246286503,10.06532475,161.71,161.69,0.06]
[1754246286680,9.31562376,161.7,161.69,0.06]
[1754246286879,9.98562376,161.7,161.69,0.06]
[1754246287100,10.05567325,161.7,161.69,0.06]
[1754246292987,0.74004949,161.7,161.69,0.06]
[1754246293182,10.05567325,161.7,161.69,0.06]
[1754246299383,14.1914292,161.7,161.69,0.06]
[1754246299912,18.78618256,161.7,161.69,0.06]
[1754246302633,18.78897867,161.7,161.69,0.06]
[1754246303938,44.78897867,161.7,161.69,0.06]
[1754246304340,44.71892918,161.7,161.69,0.06]
[1754246304644,44.79332184,161.7,161.69,0.06]
[1754246305148,44.89362957,161.7,161.68,0.06]
[1754246305318,18.04892918,161.69,161.68,0.06]
[1754246305629,18.80163118,161.69,161.68,0.06]
[1754246306016,23.97164119,161.69,161.68,0.06]
[1754246306216,18.80163118,161.69,161.68,0.06]
[1754246306439,9.48600742,161.69,161.68,0.06]
[1754246306639,18.04723852,161.69,161.68,0.06]
[1754246306829,18.12163118,161.69,161.68,0.06]
[1754246307041,8.80600742,161.69,161.68,0.06]
[1754246309950,9.48600742,161.69,161.68,0.06]
[1754246310144,18.80163118,161.69,161.68,0.06]
[1754246312930,9.48600742,161.69,161.68,0.06]
[1754246313127,8.80600742,161.69,161.68,0.06]
[1754246313470,9.48600742,161.69,161.68,0.06]
[1754246314267,9.48746508,161.69,161.68,0.06]
[1754246315546,18.80308884,161.69,161.68,0.06]
[1754246316574,18.72869618,161.69,161.68,0.06]
[1754246316746,18.80113442,161.69,161.68,0.06]
[1754246317146,44.80113442,161.69,161.68,0.06]
[1754246319240,18.80113442,161.69,161.68,0.06]
[1754246323171,18.79766403,161.69,161.68,0.06]
[1754246325665,18.82766403,161.69,161.68,0.06]
[1754246329951,88.36766403,161.69,161.68,0.06]
[1754246330445,44.82766403,161.69,161.68,0.06]
[1754246330643,88.36766403,161.69,161.68,0.06]
[1754246332050,8.75960203,161.69,161.68,0.06]
[1754246332252,52.37291976,161.69,161.68,0.06]
[1754246332452,52.29960203,161.69,161.68,0.06]
[1754246332689,52.37291976,161.69,161.68,0.06]
[1754246333879,61.68854352,161.69,161.68,0.06]
[1754246334784,62.29522579,161.69,161.68,0.06]
[1754246335293,62.36854352,161.69,161.68,0.06]
[1754246336548,61.68854352,161.69,161.68,0.06]
[1754246337576,61.61522579,161.69,161.68,0.06]
[1754246338986,62.29522579,161.69,161.68,0.06]
[1754246339894,34.75960203,161.69,161.68,0.06]
[1754246340197,87.66814775,161.69,161.68,0.06]
[1754246340874,52.35252399,161.69,161.68,0.06]
[1754246341067,52.27960203,161.69,161.68,0.06]
[1754246341467,52.35270208,161.69,161.68,0.06]
[1754246343784,8.83270208,161.69,161.68,0.06]
[1754246343979,4.62731647,161.69,161.68,0.06]
[1754246344179,4.70041652,161.69,161.68,0.06]
[1754246344676,4.70561954,161.69,161.68,0.06]
[1754246345085,4.70561954,161.69,161.68,9.37562376]
[1754246345298,4.70561954,161.69,161.68,26.16030773]
[1754246345299,0.10310005,161.69,161.68,26.16030773]
[1754246345476,0.03,161.69,161.68,26.16030773]
[1754246345800,0.10301991,161.69,161.68,26.16030773]
[1754246346394,0.03,161.69,161.68,26.16030773]
[1754246346578,0.10301991,161.69,161.68,26.16030773]
[1754246346787,0.03,161.71,161.7,26.0]
[1754246346983,0.03,161.71,161.7,62.03436067]
[1754246349172,0.10305598,161.71,161.7,62.03436067]
[1754246349895,0.10305598,161.71,161.7,52.71873691]
[1754246350398,0.03,161.71,161.7,52.71873691]
[1754246350602,0.10305598,161.71,161.7,52.71873691]
[1754246351281,0.10305598,161.71,161.7,26.71873691]
[1754246351676,0.03,161.71,161.7,26.71873691]
[1754246351999,0.03,161.71,161.7,26.10030773]
[1754246352204,0.03,161.71,161.7,26.71873691]
[1754246353007,0.10305598,161.71,161.7,26.71873691]
[1754246353713,0.03,161.71,161.7,36.03436067]
[1754246354213,0.10305598,161.71,161.7,36.03436067]
[1754246354586,0.10305598,161.71,161.7,52.71873691]
[1754246356104,0.10305598,161.71,161.7,96.21873691]
[1754246357781,0.03,161.73,161.72,16.78468397]
[1754246357975,0.03,161.73,161.72,26.10030773]
[1754246358392,0.73,161.73,161.72,26.10030773]
[1754246358612,0.03,161.73,161.72,26.71866043]
[1754246358983,0.07018078,161.73,161.72,26.71866043]
[1754246359189,0.03,161.73,161.72,26.71866043]
[1754246362290,0.07018078,161.73,161.72,26.71866043]
[1754246363711,0.07018078,161.73,161.72,32.91560445]
[1754246367629,0.77018078,161.73,161.72,32.91560445]
[1754246372514,0.07018078,161.73,161.72,32.91560445]
[1754246373413,0.77018078,161.73,161.72,32.91560445]
[1754246373786,0.77018078,161.73,161.72,15.51256778]
[1754246374091,0.75209943,161.73,161.72,15.51256778]
[1754246374607,0.75209943,161.73,161.72,6.19694402]
[1754246375492,0.75209943,161.73,161.7,9.31562376]
[1754246375885,0.75209943,161.73,161.69,26.16030773]
[1754246376081,0.73,161.73,161.69,26.16030773]
[1754246376500,0.02209943,161.72,161.69,26.16030773]
[1754246376702,0.7,161.71,161.69,26.16030773]
[1754246376900,0.02209943,161.72,161.69,26.16030773]
[1754246377222,0.7,161.71,161.69,26.16030773]
[1754246377414,0.72209943,161.71,161.7,9.31562376]
[1754246377590,0.7,161.71,161.7,9.31562376]
[1754246377923,0.73023604,161.71,161.7,9.31562376]
[1754246381399,0.73023604,161.71,161.7,15.61562376]
[1754246386249,0.03023604,161.71,161.7,15.61562376]
[1754246388834,0.71023604,161.71,161.7,12.30692452]
[1754246389923,0.03023604,161.71,161.7,29.09160849]
[1754246390125,0.03023604,161.71,161.7,73.17003767]
[1754246390515,0.03,161.73,161.71,16.78468397]
[1754246390728,0.03,161.73,161.72,50.08527722]
[1754246391105,0.03,161.73,161.72,71.01409119]
[1754246391426,0.05657457,161.73,161.72,71.01409119]
[1754246392617,0.05657457,161.73,161.72,74.38795727]
[1754246393228,0.05657457,161.73,161.72,80.68795727]
[1754246394433,0.05657457,161.73,161.72,71.30716667]
[1754246394734,0.05657457,161.73,161.72,80.68795727]
[1754246403020,0.03,161.73,161.72,80.68795727]
[1754246403617,0.05822223,161.73,161.72,80.68795727]
[1754246404746,0.71,161.75,161.74,16.78468397]
[1754246404957,0.03,161.75,161.74,76.36552858]
[1754246405545,0.05822223,161.75,161.74,80.53982858]
[1754246406021,0.03,161.79,161.78,16.78468397]
[1754246406341,0.03,161.79,161.78,70.22359794]
[1754246406552,0.03,161.79,161.78,76.36537571]
[1754246406721,0.03,161.79,161.78,78.84361371]
[1754246407421,0.03,161.79,161.78,72.70183594]
[1754246408418,0.03,161.79,161.78,29.26183594]
[1754246408623,0.03,161.79,161.78,55.26183594]
[1754246408930,0.71,161.79,161.78,72.06371257]
[1754246409318,0.71,161.79,161.78,62.68292197]
[1754246409525,0.71,161.79,161.78,72.06371257]
[1754246412141,0.71,161.79,161.78,62.68292197]
[1754246412534,0.71,161.79,161.78,68.82469974]
[1754246415144,0.71,161.79,161.76,49.56177777]
[1754246415344,0.71,161.79,161.76,52.830791]
[1754246420558,10.0907906,161.79,161.76,52.830791]
[1754246420757,9.4107906,161.79,161.76,9.410791]
[1754246420941,0.71,161.78,161.76,9.410791]
[1754246421368,0.71,161.77,161.76,9.410791]
[1754246421726,9.4107906,161.79,161.77,16.78468397]
[1754246421727,0.03,161.79,161.77,16.78468397]
[1754246421932,0.03,161.79,161.78,9.3807906]
[1754246422354,0.03,161.79,161.78,11.8593356]
[1754246422864,0.03,161.79,161.78,2.478545]
[1754246425940,0.03,161.79,161.78,8.62032277]
[1754246426152,0.74,161.79,161.78,8.62032277]
[1754246429974,0.03,161.79,161.78,8.62032277]
[1754246430277,0.03,161.79,161.78,29.26214294]
[1754246430481,0.03,161.79,161.78,55.26214294]
[1754246434050,0.74,161.79,161.78,45.26322897]
[1754246434877,0.74,161.79,161.78,19.26322897]
[1754246435183,0.74,161.79,161.78,2.478545]
[1754246440158,0.74,161.79,161.77,16.78468397]
[1754246440358,0.74,161.79,161.77,6.14177777]
[1754246440858,14.26181475,161.79,161.77,6.14177777]
[1754246441061,0.71,161.78,161.77,6.14177777]
[1754246443976,10.0907906,161.78,161.77,6.14177777]
[1754246444988,14.69324165,161.78,161.77,6.14177777]
[1754246446592,14.69324165,161.78,161.75,6.20177777]
[1754246446889,5.32245105,161.77,161.75,6.20177777]
[1754246447090,5.32245105,161.76,161.75,6.20177777]
[1754246453379,5.35245105,161.76,161.75,6.20177777]
[1754246460694,5.35245105,161.76,161.75,0.06]
[1754246460885,11.35810582,161.76,161.75,0.06]
[1754246461271,5.34571829,161.76,161.75,0.06]
[1754246462970,18.86428601,161.76,161.75,0.06]
[1754246463373,9.48036252,161.76,161.75,0.06]
[1754246463572,18.86428601,161.76,161.75,0.06]
[1754246467790,4.62571829,161.76,161.75,0.06]
[1754246468002,4.62571829,161.76,161.75,9.44392349]
[1754246473294,4.62571829,161.76,161.75,15.58570126]
[1754246473682,0.03,161.76,161.75,15.58570126]
[1754246480095,4.62565043,161.76,161.75,15.58570126]
[1754246482809,5.31565043,161.76,161.75,15.58570126]
[1754246484032,5.31874832,161.76,161.75,15.58570126]
[1754246484727,4.62874832,161.76,161.75,12.2049317]
[1754246485317,5.31874832,161.76,161.75,12.2049317]
[1754246486133,5.31874832,161.76,161.75,6.20177777]
[1754246490941,5.31874832,161.76,161.75,0.06]
[1754246492315,4.62874832,161.76,161.75,6.06315393]
[1754246492936,4.62874832,161.76,161.75,23.46607592]
[1754246493222,4.62874832,161.76,161.75,29.60785369]
[1754246496643,0.03,161.76,161.75,29.60785369]
[1754246497843,0.03,161.76,161.75,179.00785369]
[1754246498019,0.03,161.76,161.75,178.38961567]
[1754246498219,0.03,161.78,161.77,16.78468397]
[1754246498442,0.03,161.78,161.77,23.40599948]
[1754246500729,0.03,161.78,161.77,26.7775213]
[1754246502820,0.03,161.78,161.77,32.88929907]
[1754246505836,0.03,161.78,161.77,35.36769107]
[1754246507358,0.69,161.78,161.77,35.36769107]
[1754246507651,0.03,161.78,161.77,35.36769107]
[1754246509030,0.03,161.78,161.77,78.70769107]
[1754246512657,0.03,161.78,161.77,35.36769107]
[1754246512834,0.03,161.78,161.77,78.68769107]
[1754246513740,0.03,161.8,161.79,22.83646174]
[1754246514053,0.03,161.8,161.79,76.14922266]
[1754246514556,0.03,161.8,161.79,78.62730666]
[1754246520444,0.69,161.8,161.79,25.93263091]
[1754246520640,5.28396761,161.8,161.79,49.37177777]
[1754246521065,0.69,161.8,161.79,55.37277306]
[1754246521361,0.03,161.8,161.79,72.15745703]
[1754246521562,0.69,161.8,161.79,72.15745703]
[1754246521759,0.03,161.8,161.79,72.15745703]
[1754246523949,0.03,161.8,161.79,72.7755422]
[1754246524453,0.03,161.8,161.79,75.2536272]
[1754246524846,0.03,161.8,161.79,69.25263191]
[1754246525060,0.69,161.8,161.79,75.2536272]
[1754246526467,0.03,161.8,161.79,75.2536272]
[1754246529447,0.69,161.81,161.8,22.80646174]
[1754246529647,0.69,161.81,161.8,28.80745703]
[1754246530069,0.69,161.81,161.8,32.94016603]
[1754246535878,0.03,161.81,161.8,32.94016603]
[1754246536063,0.69,161.81,161.8,32.94016603]
[1754246536265,5.28702129,161.81,161.8,32.94016603]
[1754246536771,0.69,161.81,161.8,32.94016603]
[1754246537691,0.03,161.81,161.8,32.94016603]
[1754246537856,0.03,161.82,161.81,16.78468397]
[1754246538178,0.03,161.82,161.81,66.70368803]
[1754246538553,0.03,161.82,161.81,72.70468303]
[1754246538953,0.69,161.82,161.81,29.40468303]
[1754246539174,0.69,161.82,161.81,72.70468303]
[1754246541282,0.69,161.82,161.81,78.5964608]
[1754246542180,0.03,161.82,161.81,78.5964608]
[1754246544586,0.86,161.86,161.83,16.78468397]
[1754246544890,0.86,161.86,161.85,22.78567926]
[1754246545061,5.46232707,161.86,161.85,22.78567926]
[1754246545514,0.86,161.86,161.85,22.78567926]
[1754246546679,0.86,161.86,161.85,16.78468397]
[1754246546861,0.86,161.86,161.85,43.28]
[1754246547066,0.86,161.86,161.84,49.28099529]
[1754246547289,0.66,161.85,161.84,49.28099529]
[1754246547464,5.25912374,161.85,161.84,49.28099529]
[1754246547792,5.25912374,161.85,161.84,43.28]
[1754246547981,5.25912374,161.85,161.84,49.28099529]
[1754246548379,4.59912374,161.85,161.84,66.68357347]
[1754246548761,4.59912374,161.85,161.84,72.68456847]
[1754246549596,5.25912374,161.85,161.84,66.68357318]
[1754246549776,5.25912374,161.85,161.84,72.68456847]
[1754246550178,5.25912374,161.85,161.84,35.26634624]
[1754246550399,5.25912374,161.85,161.84,77.92845203]
[1754246551377,5.25912374,161.85,161.84,71.92745674]
[1754246551577,5.25912374,161.85,161.84,77.92845203]
[1754246552910,0.66,161.85,161.84,77.92845203]
[1754246555196,5.25768443,161.85,161.84,77.92845203]
[1754246557196,0.86,161.86,161.84,77.92845203]
[1754246557369,0.86,161.86,161.85,6.00099529]
[1754246557573,5.4580176,161.86,161.85,6.00099529]
[1754246558019,4.7980176,161.86,161.85,22.78567926]
[1754246558219,0.2,161.86,161.85,23.40353529]
[1754246558525,0.2,161.9,161.89,16.78468397]
[1754246558803,0.03,161.92,161.91,26.0]
[1754246558995,0.03,161.92,161.91,75.89862236]
[1754246560205,0.03,161.92,161.91,78.37471336]
[1754246560786,0.03,161.92,161.91,81.73108661]
[1754246567921,0.2,161.96,161.95,16.78468397]
[1754246568095,0.2,161.96,161.95,75.4013048]
[1754246573801,0.2,161.99,161.97,4.29177777]
[1754246574005,0.2,161.99,161.98,52.59736854]
[1754246575015,0.2,161.99,161.98,43.24]
[1754246575903,0.91,161.99,161.97,4.29177777]
[1754246576104,0.2,161.99,161.97,56.88914577]
[1754246576432,0.71,161.98,161.97,47.53177777]
[1754246578302,0.2,161.99,161.97,56.88914631]
[1754246578612,0.2,161.99,161.98,9.35736854]
[1754246578927,0.91,161.99,161.98,9.35736854]
[1754246579695,0.91,161.99,161.98,12.84914631]
[1754246580331,0.2,161.99,161.98,29.63383028]
[1754246580713,0.2,161.99,161.98,26.14205251]
[1754246583747,0.2,161.99,161.98,16.78468397]
[1754246583935,0.2,161.99,161.98,26.14205251]
[1754246585017,0.2,161.99,161.98,16.78468397]
[1754246585220,0.2,161.99,161.98,26.14205251]
[1754246585619,0.91,161.99,161.98,26.14205251]
[1754246586536,0.91,161.99,161.98,16.78468397]
[1754246586842,0.91,161.99,161.98,69.36205251]
[1754246587046,0.2,161.99,161.98,69.36205251]
[1754246590245,0.91,161.99,161.98,69.36205251]
[1754246590538,0.91,161.99,161.98,60.00468397]
[1754246591547,0.91,161.99,161.98,63.49646174]
[1754246592054,0.2,161.99,161.98,72.85383028]
[1754246592429,0.2,161.99,161.98,73.56383028]
[1754246594253,0.2,162.02,162.01,42.78468397]
[1754246594436,0.2,162.02,162.01,98.42383028]
[1754246594733,0.2,162.02,162.01,99.13383028]
[1754246595147,0.2,162.02,162.01,98.42383028]
[1754246596925,0.2,162.02,162.01,89.06646174]
[1754246597256,0.88,162.02,162.01,46.28177777]
[1754246597458,10.23736854,162.02,161.98,3.06177777]
[1754246597660,0.68,162.01,161.99,43.22]
[1754246598027,0.68,162.0,161.99,43.22]
[1754246598252,0.88,162.02,161.99,52.57736854]
[1754246598650,0.68,162.01,161.99,52.57736854]
[1754246599328,0.68,162.01,161.99,43.22]
[1754246601353,0.2,162.02,161.99,52.57736854]
[1754246601549,0.2,162.02,161.99,53.28736854]
[1754246601750,0.88,162.02,161.99,52.57736854]
[1754246602533,0.68,162.01,161.99,52.57736854]
[1754246602735,0.68,162.01,161.99,43.22]
[1754246603360,0.68,162.01,161.99,46.28177777]
[1754246603571,0.68,162.0,161.99,63.06646174]
[1754246604354,10.03736854,162.0,161.99,46.28177777]
[1754246605472,10.03736854,162.0,161.99,46.34177777]
[1754246606968,0.68,162.0,161.99,46.34177777]
[1754246610379,0.68,162.0,161.99,3.12177777]
[1754246610575,0.68,162.0,161.99,46.34177777]
[1754246611072,0.68,162.01,161.99,46.34177777]
[1754246615165,0.68,162.0,161.99,46.34177777]
[1754246617382,0.68,162.0,161.99,3.12177777]
[1754246618679,10.03736854,162.0,161.99,3.12177777]
[1754246619076,10.03736854,162.0,161.99,0.06]
[1754246620089,14.63970284,162.0,161.99,0.06]
[1754246624969,4.6023343,162.0,161.99,0.06]
[1754246627073,4.6023343,162.0,161.99,3.12177777]
[1754246627595,5.2823343,162.0,161.99,3.12177777]
[1754246632372,4.6023343,162.0,161.99,3.12177777]
[1754246633176,5.2823343,162.0,161.99,3.12177777]
[1754246638415,4.6023343,162.0,161.99,3.12177777]
[1754246639011,5.2823343,162.0,161.99,3.12177777]
[1754246642813,18.78106267,162.0,161.99,0.06]
[1754246643320,9.42369413,162.0,161.99,0.06]
[1754246643496,18.78106267,162.0,161.99,0.06]
[1754246643996,9.42369413,162.0,161.99,0.06]
[1754246644193,14.63970284,162.0,161.99,0.06]
[1754246644433,18.78106267,162.0,161.99,0.06]
[1754246646023,18.77988465,162.0,161.99,0.06]
[1754246649635,33.31218079,162.0,161.99,0.06]
[1754246649807,26.0,161.98,161.97,0.06]
[1754246650009,61.29988465,161.98,161.97,0.06]
[1754246650329,61.97988465,161.98,161.97,0.06]
[1754246651209,95.68215946,161.98,161.97,0.06]
[1754246651398,35.35736854,161.95,161.94,0.06]
[1754246651601,87.31988465,161.95,161.94,0.06]
[1754246651820,93.16424299,161.95,161.94,0.06]
[1754246652214,98.01387182,161.95,161.94,0.06]
[1754246652422,92.84951348,161.95,161.94,0.06]
[1754246652632,114.79855579,161.95,161.94,0.06]
[1754246653407,109.63419745,161.95,161.94,0.06]
[1754246657328,119.63419745,161.95,161.92,0.06]
[1754246657533,26.14205251,161.93,161.92,0.06]
[1754246657716,78.07701883,161.93,161.92,0.06]
[1754246657922,9.35736854,161.86,161.85,5.57]
[1754246658514,9.35736854,161.87,161.85,5.57]
[1754246659621,43.22,161.88,161.86,0.67]
[1754246659938,9.35736854,161.89,161.86,0.67]
[1754246660118,4.56790752,161.88,161.86,5.57]
[1754246660427,9.35736854,161.89,161.87,0.67]
[1754246660615,4.56585217,161.88,161.87,0.67]
[1754246660819,13.92322071,161.88,161.87,0.67]
[1754246662433,13.92322071,161.88,161.86,4.9]
[1754246662434,9.35736854,161.88,161.86,5.57]
[1754246663315,9.35736854,161.88,161.87,0.67]
[1754246664834,52.57736854,161.9,161.87,0.67]
[1754246665012,9.35736854,161.91,161.87,0.67]
[1754246665425,9.35736854,161.91,161.87,5.57]
[1754246665619,9.35736854,161.9,161.88,0.67]
[1754246665822,9.35736854,161.9,161.89,0.67]
[1754246666337,9.35736854,161.9,161.88,0.67]
[1754246669950,43.22,161.92,161.89,0.67]
[1754246670240,43.22,161.92,161.9,0.67]
[1754246670443,35.35736854,161.93,161.9,5.57]
[1754246670749,9.35736854,161.93,161.9,5.57]
[1754246671045,0.03,161.92,161.9,5.57]
[1754246672047,0.03,161.92,161.9,4.9]
[1754246672223,10.04736854,161.92,161.9,4.9]
[1754246672936,9.38736854,161.92,161.9,4.9]
[1754246673161,0.66,161.91,161.9,4.9]
[1754246673321,9.38736854,161.92,161.9,4.9]
[1754246673521,10.04736854,161.92,161.9,4.9]
[1754246679029,0.66,161.91,161.9,4.9]
[1754246680669,10.04736854,161.92,161.9,4.9]
[1754246686669,4.57343131,161.91,161.9,4.9]
[1754246687662,14.60079985,161.91,161.88,4.9]
[1754246687838,4.57343131,161.9,161.88,4.9]
[1754246688037,5.24343131,161.9,161.88,4.9]
[1754246688254,0.67,161.9,161.88,4.9]
[1754246689145,0.67,161.91,161.88,4.9]
[1754246689347,4.57858771,161.9,161.88,4.9]
[1754246689540,0.67,161.91,161.88,5.58]
[1754246689738,4.57859043,161.9,161.88,5.58]
[1754246689957,0.67,161.91,161.88,5.58]
[1754246690155,4.57835211,161.9,161.89,0.68]
[1754246690374,4.57835211,161.9,161.89,10.03736854]
[1754246690544,4.57835211,161.9,161.89,9.35736854]
[1754246690867,4.57835211,161.9,161.89,10.03736854]
[1754246691251,0.03,161.92,161.89,10.03736854]
[1754246691443,4.58347217,161.91,161.9,9.35736854]
[1754246691646,4.58347217,161.91,161.9,10.03736854]
[1754246692066,4.58347217,161.91,161.9,14.93736854]
[1754246692246,4.58347217,161.91,161.9,14.25736854]
[1754246693364,4.58347217,161.91,161.9,4.9]
[1754246696763,4.58347217,161.91,161.9,14.93736854]
[1754246696960,4.58347217,161.91,161.9,19.52084054]
[1754246697661,4.58347217,161.91,161.9,18.84084054]
[1754246697869,4.58347217,161.91,161.9,9.483472]
[1754246698253,5.25347217,161.91,161.9,9.483472]
[1754246698755,5.25347217,161.91,161.9,4.9]
[1754246704660,4.58347217,161.91,161.9,14.93736854]
[1754246705056,4.58347217,161.91,161.9,31.72205251]
[1754246706461,0.03,161.92,161.91,16.78468397]
[1754246706769,4.62507988,161.92,161.91,31.72205251]
[1754246709389,4.62507988,161.92,161.91,36.52921251]
[1754246712594,0.03,161.92,161.91,36.52921251]
[1754246712777,0.03,161.92,161.91,37.14683958]
[1754246714980,0.03,161.92,161.91,80.34683958]
[1754246718374,0.03,161.92,161.91,106.34683958]
[1754246718579,0.03,161.94,161.93,26.14205251]
[1754246718780,0.03,161.94,161.93,69.9596033]
[1754246718980,0.03,161.94,161.93,250.9396033]
[1754246719318,0.03,162.01,162.0,26.14205251]
[1754246719472,4.61866837,162.01,162.0,69.34205251]
[1754246719874,4.61892333,162.01,162.0,73.96072051]
[1754246721390,0.03,162.01,162.0,73.96072051]
[1754246724705,0.03,162.01,162.0,78.86072051]
[1754246729297,0.03,162.01,162.0,69.50335197]
[1754246729495,0.03,162.01,162.0,78.86072051]
[1754246729703,0.73,162.01,162.0,78.86072051]
[1754246732297,0.03,162.01,162.0,78.86072051]
[1754246734422,0.18683715,162.02,162.0,78.86072051]
[1754246734620,0.18683715,162.02,162.01,9.35736854]
[1754246735106,0.88683715,162.02,162.01,27.92000254]
[1754246736428,0.88683715,162.02,162.01,32.82000254]
[1754246741209,0.18683715,162.02,162.01,32.82000254]
[1754246742429,0.41683715,162.07,162.01,76.90193235]
[1754246742611,0.41683715,162.07,162.05,5.98084463]
[1754246742812,0.41683715,162.07,162.05,54.04084463]
[1754246743010,0.41683715,162.07,162.05,48.06]
[1754246743213,0.41683715,162.07,162.06,6.010844]
[1754246743733,0.41683715,162.07,162.05,48.06]
[1754246743927,0.41683715,162.07,162.05,10.980845]
[1754246744232,0.41683715,162.07,162.05,4.9]
[1754246745221,9.347219,162.06,162.05,4.9]
[1754246745551,10.027219,162.06,162.05,4.9]
[1754246745726,0.68,162.06,162.05,4.9]
[1754246746230,14.60000514,162.06,162.05,4.9]
[1754246748119,5.25278614,162.06,162.05,4.9]
[1754246748319,5.25278614,162.06,162.02,14.247219]
[1754246748533,0.68,162.05,162.02,14.247219]
[1754246750639,0.68,162.08,162.04,9.347219]
[1754246750810,5.26034012,162.07,162.05,9.347219]
[1754246751010,0.68,162.06,162.04,9.347219]
[1754246751410,0.68,162.08,162.04,9.347219]
[1754246751630,4.58147825,162.07,162.03,43.16]
[1754246751833,0.68,162.06,162.04,9.347219]
[1754246753341,0.1,162.09,162.05,9.347219]
[1754246753530,4.58295695,162.08,162.06,10.007219]
[1754246753721,0.78,162.09,162.06,10.007219]
[1754246754115,0.1,162.09,162.07,10.007219]
[1754246754938,0.1,162.09,162.07,9.347219]
[1754246755314,0.78,162.09,162.07,9.347219]
[1754246755513,0.1,162.09,162.07,9.347219]
[1754246755752,0.68,162.08,162.06,16.721472]
[1754246756631,0.1,162.09,162.06,16.721472]
[1754246756834,0.78,162.09,162.07,9.347219]